Cogmind - Beta 11.1 @@@ ROGUE MODE // 2022.07.22 @ 12:13:47 Player: Vine Result: Self-destructed Performance ------------- Evolutions (1) 500 Regions Visited (2) 400 Robots Destroyed (37) 185 Value Destroyed (771) 771 Prototype IDs (2) 40 Alien Tech Used (0) 0 Bonus (0) 0 TOTAL SCORE: 1896 Bonus ------- None Cogmind --------- Core Integrity 281/400 Matter 274/300 Energy 265/265 System Corruption 0% Temperature Cool (78) Movement Walking (190) Ox1 Location -9/Materials Parts ------- > --- POWER (1) -------- Improved Ion Engine > --- PROPULSION (2) --- Aluminum Leg > --- UTILITY (4) ------ Signal Interpreter Improved Terrain Scanner Terrain Scan Processor Hacking Suite > --- WEAPON (2) ------- Beam Rifle Heavy Assault Rifle > --- INVENTORY (5) ---- Ion Engine Aluminum Leg Aluminum Leg Particle Gun Autogun Peak State ------------ > --- POWER ------------ Light Ion Engine > --- PROPULSION ------- Improved Hover Unit Improved Hover Unit > --- UTILITY ---------- Improved Terrain Scanner Terrain Scan Processor Hacking Suite > --- WEAPON ----------- Autogun Autogun > --- INVENTORY -------- Improved Hover Unit Autogun Autogun [Rating: 17] Favorites ----------- Power Light Ion Engine Engine Light Ion Engine Propulsion Aluminum Leg Leg Aluminum Leg Wheel Wheel Hover Unit Improved Hover Unit Utility Improved Terrain Scanner Device Improved Terrain Scanner Storage Small Storage Unit Processor Terrain Scan Processor Hackware Hacking Suite Weapon Autogun Energy Gun Small Laser Ballistic Gun Autogun Build | -11 -10 -9 ------- Run | Scr Mat Mat Slots Evolved 2 | . . 2 Power . | . . . Propulsion . | . . . Utility 2 | . . 2 Weapon . | . . . Parts Attached 39 | 9 7 23 Power 4 | 1 . 3 Engine 4 | 1 . 3 Core . | . . . Reactor . | . . . Propulsion 15 | 3 3 9 Treads . | . . . Leg 8 | . . 8 Wheel 3 | 3 . . Hover 4 | . 3 1 Flight . | . . . Utility 7 | 2 2 3 Device 3 | 1 . 2 Storage 1 | 1 . . Processor 2 | . 1 1 Hackware 1 | . 1 . Protection . | . . . Artifact . | . . . Weapon 13 | 3 2 8 Energy Gun 3 | . . 3 Energy Cannon . | . . . Ballistic Gun 10 | 3 2 5 Ballistic Cannon . | . . . Launcher . | . . . Special Weapon . | . . . Impact Weapon . | . . . Slashing Weapon . | . . . Piercing Weapon . | . . . Special Melee Weapon . | . . . Unidentified Prototypes . | . . . Parts Lost 4 | . 1 3 Power . | . . . Propulsion 4 | . 1 3 Utility . | . . . Weapon . | . . . Highest Loss Streak 2 | . 1 2 To Critical Strikes . | . . . Average Slot Usage (%) 95 | . 99 93 Engine 11 | . 14 10 Leg 11 | . . 17 Wheel 1 | . 5 . Hover 9 | . 22 3 Device 9 | . 5 11 Storage 1 | . 3 . Processor 15 | . 10 17 Hackware 10 | . 8 11 Energy Gun 4 | . . 7 Ballistic Gun 18 | . 28 14 Naked Turns . | . . . Heaviest Build 15 | 13 15 14 Greatest Support 26 | 26 20 20 Greatest Overweight (x) 3 | 1 1 3 Average Overweight (x) . | . . . Largest Inventory Capacity 8 | 8 8 5 Average Capacity 5 | 7 5 5 Most Carried 8 | 4 8 5 Average Carried 4 | 3 5 3 Final Capacity 8 | 8 5 5 Final Carried 5 | 4 4 5 Class Distribution -------------------- 56% | Mutant 43% | Scavenger-Mutant Dominant Class ---------------- Mutant | -10/Materials Scavenger-Mutant | -9/Materials Resources | -11 -10 -9 ----------- Run | Scr Mat Mat Matter Collected 1211 | 338 187 686 Remotely . | . . . Salvage Created 1413 | 114 237 1062 Parts 79 | 8 20 51 Haulers Intercepted 4 | . 1 3 Recyclers Shooed 3 | 2 1 . Parts Field Recycled . | . . . Retrieved Matter . | . . . Parts Self-Destructed . | . . . Prevented . | . . . Kills | -11 -10 -9 ------- Run | Scr Mat Mat Combat Hostiles Destroyed 18 | . 3 15 Guns 18 | . 3 15 Classes Destroyed 11 | 2 5 4 Worker 3 | . . 3 Builder 2 | . 2 . Tunneler 3 | 2 . 1 Hauler 4 | . 1 3 Recycler 3 | 1 . 2 Operator 2 | . 1 1 Watcher 2 | . 1 1 Swarmer 2 | . . 2 Grunt 11 | . 3 8 Duelist 1 | . . 1 Sentry 4 | . . 4 Best Kill Streak 10 | 2 3 10 Combat Bots Only 4 | . 2 4 Max Kills in Single Turn 2 | 1 1 2 Gunslinging 1 | . . 1 Exploded . | . . . Melee . | . . . Uniques/NPCs Destroyed . | . . . Combat | -11 -10 -9 -------- Run | Scr Mat Mat Damage Taken 1111 | . 141 970 Core 144 | . 25 119 Absorbed by Shields . | . . . Regen/Repaired (Parts) 38 | . . 38 Core Remaining (%) 95 | 100 90 . Volleys Fired 117 | 8 27 82 Largest 2 | 2 2 2 Hottest 88 | 40 46 88 Shots Fired 234 | 16 54 164 Gun 234 | 16 54 164 Cannon . | . . . Launcher . | . . . Special . | . . . Kinetic 176 | 16 54 106 Thermal 58 | . . 58 Explosive . | . . . Electromagnetic . | . . . Robot Hit Streak 18 | 3 7 18 Robot Miss Streak 4 | 1 3 4 Penetration Max . | . . . Secondary Targets 3 | . . 3 Max Gunslinging Chain 1 | . . 1 Shots Hit Robots 157 | 10 35 112 Core Hits 60 | 4 15 41 Critical Kills . | . . . Critical Parts Destroyed 3 | . 2 1 Critical Strikes 4 | . 2 2 Burn 1 | . . 1 Destroy 3 | . 2 1 Melee Attacks . | . . . Impact . | . . . Slashing . | . . . Piercing . | . . . Sneak Attacks . | . . . Combat Hostiles . | . . . Follow-up Attacks . | . . . Damage Inflicted 2313 | 139 562 1612 Guns 2313 | 139 562 1612 Cannons . | . . . Explosions . | . . . Melee . | . . . Ramming . | . . . Kinetic 1896 | 139 562 1195 Thermal 417 | . . 417 Explosive . | . . . Electromagnetic . | . . . Impact . | . . . Slashing . | . . . Piercing . | . . . Highest Corruption . | . . . Average Corruption . | . . . Corruption Purged . | . . . Corruption Blocked . | . . . Overload Shots . | . . . Overflow Damage . | . . . Projectiles . | . . . Explosions . | . . . Melee . | . . . Knockbacks . | . . . Impact . | . . . Kinetic . | . . . Secondary . | . . . Self-Inflicted Damage . | . . . Shots . | . . . Rammed . | . . . Targets Rammed . | . . . Kicked . | . . . Crushed . | . . . Highest Temperature 141 | 6 111 141 Average Temperature 30 | 6 39 27 Received Heat Transfer 399 | . 102 297 Siege Activations . | . . . Robots Corrupted . | . . . Combat Hostiles . | . . . Parts Fried . | . . . Impact Corruptions . | . . . Robots Melted . | . . . Combat Hostiles . | . . . Parts Melted 3 | . . 3 Heat Transferred 1033 | . . 1033 Parts Sabotaged . | . . . Parts Stolen . | . . . Parts Stripped . | . . . Power Chain Reactions . | . . . Missiles Intercepted . | . . . Alert | -11 -10 -9 ------- Run | Scr Mat Mat Peak Influence 279 | 15 151 279 Initial . | . . . Average 90 | 12 77 132 Maximum Alert Level 1 | . . 1 Low Security (%) 87 | 100 100 76 Level 1 12 | . . 23 Level 2 . | . . . Level 3 . | . . . Level 4 . | . . . Level 5 . | . . . High Security . | . . . Max Security . | . . . Squads Dispatched 4 | . 1 3 Investigation 1 | . . 1 Extermination . | . . . Reinforcement 3 | . 1 2 Assault . | . . . Garrison . | . . . Intercept . | . . . Searches Triggered . | . . . Construction Impeded . | . . . Haulers Reinforced . | . . . Active Scanning Responses . | . . . Cargo Convoy Interrupts . | . . . Stealth | -11 -10 -9 --------- Run | Scr Mat Mat Distress Signals 2 | . . 2 Communications Jammed . | . . . Distress Signals . | . . . Times Spotted 38 | . 6 32 Peak Tracking Total 5 | . 2 5 Tactical Retreats 5 | . 1 4 Traps | -11 -10 -9 ------- Run | Scr Mat Mat Traps Triggered 1 | . . 1 Indirectly . | . . . Trap Hack Attempts . | . . . Triggered . | . . . Disarmed . | . . . Reprogrammed . | . . . Reused . | . . . Traps Extracted . | . . . Installed . | . . . Triggered . | . . . Machines | -11 -10 -9 ---------- Run | Scr Mat Mat Machines Disabled . | . . . Max in Single Turn . | . . . Machines Sabotaged . | . . . Garrisons Compromised . | . . . Overloaded Fab Kills . | . . . Hacking | -11 -10 -9 --------- Run | Scr Mat Mat Machines Accessed 6 | . 3 3 Terminals 4 | . 2 2 Fabricators . | . . . Repair Stations 1 | . . 1 Recycling Units 1 | . 1 . Scanalyzers . | . . . Garrison Access . | . . . Total Hacks 17 | . 7 10 Successful 13 | . 5 8 Failed 4 | . 2 2 Catastrophic . | . . . Database Lockouts . | . . . Manual . | . . . Terminals 14 | . 6 8 Fabricators . | . . . Repair Stations 2 | . . 2 Recycling Units 1 | . 1 . Scanalyzers . | . . . Garrison Access . | . . . Terminal Hacks 10 | . 4 6 Robot Analysis 1 | . 1 . Prototype ID Bank 1 | . 1 . Emergency Access Points 1 | . 1 . Locate Traps 1 | . . 1 Dispatch Records 1 | . 1 . Patrol Status 2 | . . 2 Investigation Status 1 | . . 1 Hauler Manifests 1 | . . 1 Registered Prototypes 1 | . . 1 Fabricator Hacks . | . . . Repair Station Hacks 2 | . . 2 Scan Component 1 | . . 1 Repair 1 | . . 1 Recycling Unit Hacks 1 | . 1 . Report Inventory 1 | . 1 . Scanalyzer . | . . . Garrison Access Hacks . | . . . Unauthorized Hacks . | . . . Terminals . | . . . Fabricators . | . . . Repair Stations . | . . . Recycling Units . | . . . Scanalyzers . | . . . Garrison Access . | . . . Data Cores Recovered . | . . . Used . | . . . Hacking Detections 4 | . 2 2 Full Trace Events . | . . . Feedback Events . | . . . Feedback Blocked . | . . . Robot Schematics Acquired . | . . . Robots Built . | . . . Authchips . | . . . Time . | . . . Total Robot Build Rating . | . . . Part Schematics Acquired . | . . . Parts Built . | . . . Authchips . | . . . Time . | . . . Total Part Build Rating . | . . . Parts Repaired 1 | . . 1 Time 32 | . . 32 Parts Recycled . | . . . Recycled Matter . | . . . Retrieved Matter . | . . . Retrieved Components . | . . . Parts Scanalyzed . | . . . Part Schematics Acquired . | . . . Parts Damaged . | . . . Bothacking | -11 -10 -9 ------------ Run | Scr Mat Mat Used RIF Installer . | . . . Robots Hacked . | . . . Non-combat . | . . . Combat . | . . . Robot Hacks Applied . | . . . Relay Couplers Released . | . . . Fabnet Peak Effective % . | . . . Robots Rewired . | . . . Allies Hacked . | . . . Hacks Repelled . | . . . Allies | -11 -10 -9 -------- Run | Scr Mat Mat Total Allies . | . . . Largest Group . | . . . Highest-Rated Group . | . . . Highest-Rated Ally . | . . . Total Orders . | . . . Ally Attacks . | . . . Total Damage . | . . . Kills . | . . . Allies Corrupted . | . . . Allies Melted . | . . . Intel | -11 -10 -9 ------- Run | Scr Mat Mat Robot Analysis Total 1 | . 1 . Derelict Logs Recovered . | . . . Drone Launches . | . . . Drone Recoveries . | . . . Exploration | -11 -10 -9 ------------- Run | Scr Mat Mat Turns Passed 1714 | 406 404 904 Spaces Moved 970 | 102 379 489 Core 2 | 1 . 1 Treads . | . . . Legs 357 | . . 357 Wheels 172 | 101 71 . Hover 439 | . 308 131 Flight . | . . . Fastest Speed 50 | 50 56 56 Average Speed 85 | 85 62 103 Slowest Speed 200 | 95 116 200 Overloaded Moves . | . . . Propulsion Burnouts . | . . . Robots Hopped . | . . . Cave-ins Triggered . | . . . Exploration Rate (%) 30 | 7 48 36 Regions Visited 2 Branch Regions . Pre-discovered Areas . | . . . Known Exits Taken . | . . . Unknown Exits Taken 2 | 1 1 . Scrap Searched . | . . . Spaces Dug . | . . . Terrain Destroyed . | . . . Melee . | . . . Projectile . | . . . AOE . | . . . Terrain Rammed . | . . . Walls Destroyed . | . . . Machines Disabled . | . . . Actions | -11 -10 -9 --------- Run | Scr Mat Mat Total 1642 | 400 505 737 Wait 479 | 278 75 126 Move 968 | 101 378 489 Hop . | . . . Pick Up 17 | 3 8 6 Fast Attach 12 | 8 1 3 Attach 4 | . 1 3 Detach . | . . . Swap 23 | 1 5 17 Drop 22 | 1 10 11 Fire 117 | 8 27 82 Melee . | . . . Ram . | . . . Kick . | . . . Crush . | . . . Escape Stasis . | . . . Rewire . | . . . Trap . | . . . Miscellaneous . | . . . Route ------- -11/Scrapyard -10/Materials (discovered 2 exits: *Mat x2) -9/Materials (discovered 1 exit: [*Sto]) History --------- Turn | Location | Event 13 | -11/Scrapyard | Discovered new exit (range 15) 407 | -11/Scrapyard | Entered Materials 408 | -10/Materials | Build established: Mutant 472 | -10/Materials | Discovered new exit (range 11) 655 | -10/Materials | Discovered new exit (range 15) 811 | -10/Materials | Entered another Materials area 811 | -9/Materials | Evolved 2 slots: Utility x2 1288 | -9/Materials | Build established: Scavenger-Mutant 1393 | -9/Materials | Repaired Imp. Ion Engine 1604 | -9/Materials | Discovered new exit (range 13) 1715 | -9/Materials | Self-destructed Last Messages --------------- 01604_ EXIT=FOUND 01639_ Y-45 Defender suffers critical hit (Burn). 01642_ Heat Sink melted. 01642_ Y-45 Defender destroyed. 01646_ Acquired 26 matter. 01667_ K-01 Serf collects debris. 01673_ Triggered Alarm Trap. 01673_ An alarm sounds. 01673_ ALERT: Alarm triggered, dispatching investigation squad. 01683_ W-16 Scout sends out distress signal. 01695_ S-10 Pest destroyed. 01698_ K-01 Serf collects debris. 01703_ S-10 Pest destroyed. 01703_ Switching to secondary target: S-10 Pest. 01704_ K-01 Serf collects debris. 01706_ Aluminum Leg destroyed. 01706_ A-02 Transporter destroyed. 01707_ K-01 Serf collects debris. 01709_ Destroyed Flight Unit. 01712_ K-01 Serf collects debris. Map ----- +----------------------------------------------------+ | ### """ # ? # ##? ?###? | | !#% """ # ? # #?#?##??## | | + # ?+ ######??#? | | " !#* "" # # ####?###?? | | " #[ S"" #?? # ##?###??#? | | " #! "" # # #?####???# | | # # # ##??##?#?? | | ################^^^#?#??#???? | | ######## # #???#?##?# | | + =/% ########## | | ########### !# ## # | | ############### ## # | | " ############### ## # | | " ?## ####### # # | | " ?# ! # # | | " ? + < " # | | ?## # # | | #?#### ####### # # | | ### ### #####??####### # | | ?##?### #?#?###?#?#?## # | | #?#??## ##?#?######### # | | ???##?? #?#######?#######/#### | | #?##### ##?##############g#??# | | ??#?#?????? #### | | ?#??##?? #?#?###### !!* #?#? | | ??????????# # !]]@* #### | | ????????? ?? """ + !%ks% #??# | | ???????????? """ #####/## #??? | | ???????? ???????"???# Y # ##?? | | ????????????? ?? ??# =! # ###? | | ??????????? ?? ????# =! # #??? | | ???????????????????## # ##?? | | ??????????????? ????##+#### #?#? | | ????????????? ?? ??## ? ? ??? | | ??????????????#????#?# ?? ?? | | ????????????#? ###???# ? ?#? | | ?????????????? ? ? ? ?? ?## | | ????????????????? ? ? ? ??# | | ???????????#????????? ? ?? | | ????????????#? ????? ???## | | ???????????????"???? ?#? | | ????????????????????? ??? | | ????????????????????? ???? | | ????????????????????? ??# | | ??????????????????#?? ??? | | ????????????????????? ????? | | ????????????????????? ??????? | | ???????????????????????????????? | | ???????????????????????????????? | | ???????????????????????????????? | +----------------------------------------------------+ Best States ------------- Heat Dissipation 28 Energy Generation 12 Energy Capacity 265 Matter Stores 300 Matter Capacity 300 Sight Range 16 Terrain Scan Range 16 Terrain Scan Density 85 Evasion (%) 55 Offensive Hacking 10 Item Schematics ----------------- None Robot Schematics ------------------ None Fabricated ------------ Nothing Alien Tech Used ----------------- None Achievements -------------- None Challenges ------------ None Game ------ Seed FlyingBottomlessShotgun Manual? 0 Play Time 00:20:58 Cumulative 28.4 hours Start 2022.07.22 @ 11:56:16 End 2022.07.22 @ 12:13:47 Sessions 1 Manual Loads 0 Difficulty Rogue Special Mode None Game No. 42 Rogue 42 Adventurer 0 Explorer 0 Win Type - Total 0 Types 0/0/0/0/0/0/0/0/0 Lore% 16 Gallery% 24 Achievement% 19 Wizard Run 0 Options --------- ASCII 0 Keyboard 0 Movement Mouse Keybinds 0 Fullscreen 1 Font 24/Smallcaps Map View 76x50 Tactical HUD 1 Map Filters NONE Filters NONE Steam 1 RUN: 67429cbd-9b80-4cd8-889b-61795d34ec52